bitfinex/quotes_BTCUSD_20240730
["timestamp","ask_amount","ask_price","bid_price","bid_amount"]
[1722366615945,0.151749,65898.0,65897.0,0.000913]
[1722366616153,0.758747,65898.0,65897.0,0.000913]
[1722366616377,1.062246,65898.0,65897.0,0.061714]
[1722366616578,2.49267904,65898.0,65897.0,0.061714]
[1722366616823,2.49267904,65898.0,65897.0,0.000913]
[1722366616824,2.94687236,65898.0,65897.0,0.000913]
[1722366616985,2.86647804,65898.0,65897.0,0.000913]
[1722366617203,2.98647804,65898.0,65897.0,0.000913]
[1722366617422,3.20557804,65898.0,65897.0,0.000913]
[1722366617656,3.21493869,65898.0,65897.0,0.000913]
[1722366618028,3.19693869,65898.0,65897.0,0.000913]
[1722366618412,3.18757804,65898.0,65897.0,0.000913]
[1722366618641,2.65497904,65898.0,65897.0,0.000913]
[1722366618840,2.140547,65898.0,65897.0,0.000913]
[1722366619094,2.444046,65898.0,65897.0,0.000913]
[1722366620137,2.59267904,65898.0,65897.0,0.000913]
[1722366620562,2.60267904,65898.0,65897.0,0.001913]
[1722366620774,2.59267904,65898.0,65897.0,0.000913]
[1722366621146,2.60267904,65898.0,65897.0,0.001913]
[1722366621527,2.59267904,65898.0,65897.0,0.000913]
[1722366621756,2.28918004,65898.0,65897.0,0.000913]
[1722366621963,2.148547,65898.0,65897.0,0.001913]
[1722366622309,1.845048,65898.0,65897.0,0.001913]
[1722366622539,1.541549,65898.0,65897.0,0.001913]
[1722366622741,1.2898,65898.0,65897.0,0.153664]
[1722366622955,1.2898,65898.0,65897.0,0.078013]
[1722366623127,1.441549,65898.0,65897.0,0.10645108]
[1722366623564,1.441549,65898.0,65897.0,0.101013]
[1722366623698,1.2898,65898.0,65897.0,0.101013]
[1722366623899,1.2898,65898.0,65897.0,0.10545108]
[1722366623900,1.2798,65898.0,65897.0,0.10545108]
[1722366624127,1.735048,65898.0,65897.0,0.10545108]
[1722366624324,2.048547,65898.0,65897.0,0.03035108]
[1722366624645,2.49267904,65898.0,65897.0,0.000913]
[1722366624847,2.49367904,65898.0,65897.0,0.000913]
[1722366625271,2.49267904,65898.0,65897.0,0.000913]
[1722366625491,2.80717804,65898.0,65897.0,0.000913]
[1722366625804,2.59267904,65898.0,65897.0,0.000913]
[1722366627362,2.59967904,65898.0,65897.0,0.001913]
[1722366628008,2.60818333,65898.0,65897.0,0.001913]
[1722366629582,2.29618004,65898.0,65897.0,0.001913]
[1722366629930,1.742048,65898.0,65897.0,0.001913]
[1722366630045,1.742048,65898.0,65897.0,0.024913]
[1722366630242,1.438549,65898.0,65897.0,0.024913]
[1722366630493,1.438549,65898.0,65897.0,0.0264672]
[1722366630720,1.438549,65898.0,65897.0,0.1089672]
[1722366630721,1.2868,65898.0,65897.0,0.1089672]
[1722366630911,1.2868,65898.0,65897.0,0.56810508]
[1722366631110,0.007,65898.0,65897.0,0.87160808]
[1722366631732,0.151733,65905.0,65900.0,0.151744]
[1722366631931,0.151733,65905.0,65901.0,0.0245542]
[1722366632314,0.4782,65909.0,65901.0,0.0245542]
[1722366632654,0.629924,65909.0,65905.0,0.0015542]
[1722366633088,0.151726,65908.0,65905.0,0.0245542]
[1722366633291,0.00215682,65908.0,65905.0,0.0245542]
[1722366633501,0.00215682,65908.0,65905.0,0.0015542]
[1722366633713,0.07534716,65906.0,65905.0,0.0015542]
[1722366633881,0.07534716,65906.0,65905.0,0.0245542]
[1722366634263,0.07534716,65906.0,65904.0,0.0245542]
[1722366634468,0.001,65905.0,65904.0,0.0015542]
[1722366634682,0.22707816,65906.0,65904.0,0.0015542]
[1722366635046,0.23007816,65906.0,65904.0,0.0015542]
[1722366635242,0.07534716,65906.0,65904.0,0.0015542]
[1722366635461,0.22708016,65906.0,65905.0,0.060789]
[1722366635665,0.22708016,65906.0,65905.0,0.083789]
[1722366635867,0.83400416,65906.0,65905.0,0.083789]
[1722366636073,1.19796616,65906.0,65905.0,0.060789]
[1722366636274,0.758747,65898.0,65897.0,0.000913]
[1722366636480,0.83409416,65898.0,65897.0,0.000913]
[1722366636699,1.13759316,65898.0,65897.0,0.000913]
[1722366636913,1.13759316,65898.0,65897.0,0.061712]
[1722366636914,2.41739316,65898.0,65897.0,0.061712]
[1722366637113,2.41739316,65898.0,65897.0,0.000913]
[1722366637325,2.5680262,65898.0,65897.0,0.000913]
[1722366637758,2.2645272,65898.0,65897.0,0.000913]
[1722366637971,2.2645272,65898.0,65897.0,0.001913]
[1722366638200,2.2715272,65898.0,65897.0,0.001913]
[1722366638419,1.742048,65898.0,65897.0,0.001913]
[1722366638645,2.045547,65898.0,65897.0,0.001913]
[1722366638853,1.742048,65898.0,65897.0,0.0034672]
[1722366639056,1.742048,65898.0,65897.0,0.0264672]
[1722366639277,1.742048,65898.0,65897.0,0.024913]
[1722366639484,1.742048,65898.0,65897.0,0.001913]
[1722366639708,0.007,65898.0,65897.0,0.7003212]
[1722366639915,0.007,65898.0,65897.0,0.2680672]
[1722366640121,0.007,65898.0,65897.0,0.721767]
[1722366640576,0.007,65898.0,65897.0,0.418264]
[1722366640985,0.15389682,65902.0,65897.0,0.417264]
[1722366641240,0.00215682,65902.0,65898.0,0.0245542]
[1722366641400,0.455241,65899.0,65898.0,0.0245542]
[1722366641616,0.822435,65899.0,65898.0,0.0015542]
[1722366641812,1.58005604,65899.0,65898.0,0.0015542]
[1722366642055,1.58005604,65899.0,65897.0,0.000913]
[1722366642056,0.455248,65898.0,65897.0,0.000913]
[1722366642282,1.21287904,65898.0,65897.0,0.000913]
[1722366644196,1.22287904,65898.0,65897.0,0.000913]
[1722366645067,1.24014603,65898.0,65897.0,0.000913]
[1722366645415,1.34714603,65898.0,65897.0,0.001913]
[1722366645818,1.36714603,65898.0,65897.0,0.001913]
[1722366646021,1.67064503,65898.0,65897.0,0.001913]
[1722366646924,1.65064503,65898.0,65897.0,0.001913]
[1722366647301,1.67064503,65898.0,65897.0,0.001913]
[1722366647993,1.63337804,65898.0,65897.0,0.001913]
[1722366648203,1.65337804,65898.0,65897.0,0.001913]
[1722366648429,1.67065431,65898.0,65897.0,0.001913]
[1722366648693,1.67065431,65898.0,65897.0,0.000913]
[1722366648694,1.68093079,65898.0,65897.0,0.000913]
[1722366649117,1.68724062,65898.0,65897.0,0.001913]
[1722366649306,1.69587725,65898.0,65897.0,0.001913]
[1722366649710,1.67860098,65898.0,65897.0,0.001913]
[1722366649955,1.66129115,65898.0,65897.0,0.001913]
[1722366650286,1.67854468,65898.0,65897.0,0.001913]
[1722366650938,1.6612682,65898.0,65897.0,0.001913]
[1722366651296,1.6812682,65898.0,65897.0,0.001913]
[1722366651510,1.6612682,65898.0,65897.0,0.001913]
[1722366652236,1.6812682,65898.0,65897.0,0.001913]
[1722366654851,1.64401467,65898.0,65897.0,0.001913]
[1722366655197,1.66128255,65898.0,65897.0,0.001913]
[1722366656425,1.34778355,65898.0,65897.0,0.001913]
[1722366656675,1.33051567,65898.0,65897.0,0.001913]
[1722366656898,1.01838004,65898.0,65897.0,0.001913]
[1722366657934,1.2798,65900.0,65897.0,0.000913]
[1722366658174,0.00215682,65899.0,65898.0,0.0015542]
[1722366658379,0.45739782,65899.0,65898.0,0.0824542]
[1722366658594,0.45739782,65899.0,65898.0,0.1039]
[1722366659133,0.76089182,65899.0,65898.0,0.1039]
[1722366659334,0.76089182,65899.0,65898.0,0.023]
[1722366659534,0.76089182,65899.0,65897.0,0.000913]
[1722366659535,1.062246,65898.0,65897.0,0.000913]
[1722366659720,1.21287904,65898.0,65897.0,0.000913]
[1722366660122,1.27527904,65898.0,65897.0,0.000913]
[1722366660516,1.29263453,65898.0,65897.0,0.000913]
[1722366661066,1.62613348,65898.0,65897.0,0.000913]
[1722366661286,1.72613348,65898.0,65897.0,0.000913]
[1722366661452,1.72348892,65898.0,65897.0,0.000913]
[1722366661651,3.00328892,65898.0,65897.0,0.000913]
[1722366661852,2.99328892,65898.0,65897.0,0.000913]
[1722366662051,2.63538992,65898.0,65897.0,0.001913]
[1722366662255,1.32251088,65898.0,65897.0,0.001913]
[1722366662467,1.30515544,65898.0,65897.0,0.066213]
[1722366662673,1.30515544,65898.0,65897.0,0.089213]
[1722366662883,1.45690444,65898.0,65897.0,0.0907672]
[1722366663083,1.30515544,65898.0,65897.0,0.0907672]
[1722366663285,1.29715544,65898.0,65897.0,0.088213]
[1722366663490,1.29715544,65898.0,65897.0,0.2415182]
[1722366663722,1.29715544,65898.0,65897.0,0.0907672]
[1722366664810,1.29715544,65898.0,65897.0,0.2425182]
[1722366665036,1.29715544,65898.0,65897.0,0.0907672]
[1722366665261,1.44890444,65898.0,65897.0,0.0897672]
[1722366665512,1.75240344,65898.0,65897.0,0.0284672]
[1722366666200,2.51003448,65898.0,65897.0,0.000913]
[1722366666437,2.52626921,65898.0,65897.0,0.004913]
[1722366666675,2.52626921,65898.0,65897.0,0.000913]
[1722366666914,2.52625325,65898.0,65897.0,0.002913]
[1722366669123,2.52625325,65898.0,65897.0,0.000913]
[1722366669388,2.53425325,65898.0,65897.0,0.001913]
[1722366669641,2.23075425,65898.0,65897.0,0.001913]
[1722366669882,2.54299489,65898.0,65897.0,0.001913]
[1722366670121,2.52677612,65898.0,65897.0,0.001913]
[1722366670361,2.50942068,65898.0,65897.0,0.001913]
[1722366670839,2.52561458,65898.0,65897.0,0.001913]
[1722366671071,2.52561418,65898.0,65897.0,0.001913]
[1722366671489,2.50942068,65898.0,65897.0,0.001913]
[1722366671695,2.046547,65898.0,65897.0,0.001913]
[1722366672069,2.046547,65898.0,65897.0,0.0034672]
[1722366673633,2.046547,65898.0,65897.0,0.001913]
[1722366674796,2.0627084,65898.0,65897.0,0.001913]
[1722366675162,2.350046,65898.0,65897.0,0.001913]
[1722366675712,2.36616317,65898.0,65897.0,0.001913]
[1722366676102,2.350046,65898.0,65897.0,0.001913]
[1722366676497,2.36616366,65898.0,65897.0,0.001913]
[1722366677146,2.38231897,65898.0,65897.0,0.001913]
[1722366677341,2.39847423,65898.0,65897.0,0.001913]
[1722366677744,2.38235657,65898.0,65897.0,0.001913]
[1722366678718,2.53298961,65898.0,65897.0,0.001913]
[1722366678922,2.90658861,65898.0,65897.0,0.001913]
[1722366679125,3.10178861,65898.0,65897.0,0.001913]
[1722366679343,3.4180588,65898.0,65897.0,0.001913]
[1722366679754,3.40190354,65898.0,65897.0,0.001913]
[1722366680127,3.41809213,65898.0,65897.0,0.001913]
[1722366680413,3.38193682,65898.0,65897.0,0.001913]
[1722366680693,3.09843782,65898.0,65897.0,0.001913]
[1722366680927,3.07843782,65898.0,65897.0,0.001913]
[1722366681129,3.09843782,65898.0,65897.0,0.001913]
[1722366681282,3.40193682,65898.0,65897.0,0.001913]
[1722366681844,3.38193682,65898.0,65897.0,0.001913]
[1722366682307,3.07843782,65898.0,65897.0,0.001913]
[1722366682711,3.05766663,65898.0,65897.0,0.000913]
[1722366682895,3.05396015,65898.0,65897.0,0.000913]
[1722366683102,3.08411586,65898.0,65897.0,0.001913]
[1722366683624,3.40761486,65898.0,65897.0,0.001913]
[1722366683828,3.71830918,65898.0,65897.0,0.001913]
[1722366684146,3.71830918,65898.0,65865.0,0.009394]
[1722366684147,0.151811,65871.0,65870.0,0.1437]
[1722366684563,0.151811,65871.0,65870.0,0.1667]
[1722366684770,0.151811,65871.0,65870.0,0.227518]
[1722366684977,0.759057,65871.0,65870.0,0.166418]
[1722366685201,0.60606704,65871.0,65870.0,0.060818]
[1722366685408,0.455469,65866.0,65865.0,0.009394]
[1722366685620,1.5923872,65866.0,65865.0,0.009394]
[1722366686047,1.22975566,65866.0,65865.0,0.009394]
[1722366686468,1.24611894,65866.0,65865.0,0.009394]
[1722366686677,0.62246366,65866.0,65865.0,0.009394]
[1722366686881,0.93210966,65866.0,65865.0,0.009394]
[1722366687025,1.22975566,65866.0,65865.0,0.009394]
[1722366687436,1.23775566,65866.0,65865.0,0.009394]
[1722366687639,0.93410966,65866.0,65865.0,0.009394]
[1722366688638,0.17618462,65866.0,65865.0,0.009394]
[1722366688806,2.06327662,65866.0,65865.0,0.009394]
[1722366690026,2.36692262,65866.0,65865.0,0.009394]
[1722366690235,2.350561,65866.0,65865.0,0.009394]
[1722366691110,2.50119404,65866.0,65865.0,0.009394]
[1722366691314,2.64149404,65866.0,65865.0,0.009394]
[1722366691526,2.95514004,65866.0,65865.0,0.009394]
[1722366691694,3.05514004,65866.0,65865.0,0.009394]
[1722366692717,3.04714004,65866.0,65865.0,0.009394]
[1722366693128,3.05614004,65866.0,65865.0,0.009394]
[1722366694394,3.79398604,65866.0,65865.0,0.009394]
[1722366694582,0.181834,65861.0,65860.0,0.009394]
[1722366694790,0.181834,65861.0,65843.0,0.0015542]
[1722366694791,0.455622,65844.0,65843.0,0.0015542]
[1722366695012,1.726028,65844.0,65843.0,0.0015542]
[1722366695305,0.455628,65843.0,65842.0,0.064]
[1722366695669,0.781897,65855.0,65837.0,0.064]
[1722366695670,0.303732,65848.0,65837.0,0.064]
[1722366695881,0.21408986,65847.0,65836.0,0.0015542]
[1722366696339,0.15189,65837.0,65836.0,0.0015542]
[1722366696340,0.45567,65837.0,65836.0,0.0015542]
[1722366696594,0.45567,65837.0,65835.0,0.091805]
[1722366696595,0.151892,65836.0,65835.0,0.091805]
[1722366696841,0.45783382,65836.0,65835.0,0.091805]
[1722366697099,0.15404882,65836.0,65835.0,0.091805]
[1722366697320,0.00215682,65836.0,65835.0,0.091805]
[1722366697518,0.303761,65842.0,65837.0,0.151889]
[1722366697750,0.15063304,65847.0,65835.0,0.152659]
[1722366697751,0.303779,65838.0,65835.0,0.152659]
[1722366697980,0.455677,65836.0,65835.0,0.152659]
[1722366698185,0.455677,65836.0,65835.0,0.175659]
[1722366698642,0.759462,65836.0,65835.0,0.093259]
[1722366699071,0.759462,65836.0,65835.0,0.070259]
[1722366699284,2.48428604,65836.0,65835.0,0.009405]
[1722366699456,2.79807104,65836.0,65835.0,0.009405]
[1722366699999,2.89557104,65836.0,65835.0,0.009405]
[1722366700174,2.97557104,65836.0,65835.0,0.009405]
[1722366700328,3.20187104,65836.0,65835.0,0.009405]
[1722366700674,3.19687104,65836.0,65835.0,0.009405]
[1722366700906,3.21687104,65836.0,65835.0,0.009405]
[1722366701110,3.21087104,65836.0,65835.0,0.009405]
[1722366701311,3.34756536,65836.0,65835.0,0.009405]
[1722366701437,3.35631366,65836.0,65835.0,0.009405]
[1722366702070,3.68009866,65836.0,65835.0,0.009405]
[1722366703074,3.69409866,65836.0,65835.0,0.009405]
[1722366703282,3.69409866,65836.0,65804.0,0.146294]
[1722366703283,0.151954,65809.0,65804.0,0.146294]
[1722366703478,0.151954,65809.0,65805.0,0.0015542]
[1722366703479,0.759807,65806.0,65805.0,0.0015542]
[1722366703651,1.42103904,65809.0,65804.0,0.009394]
[1722366703652,0.455892,65805.0,65804.0,0.009394]
[1722366703908,0.75982,65805.0,65804.0,0.009394]
[1722366704111,0.75982,65805.0,65804.0,0.070279]
[1722366704314,1.21438104,65805.0,65804.0,0.070279]
[1722366704519,0.01,65800.0,65799.0,0.009394]
[1722366704719,1.43291402,65800.0,65799.0,0.009394]
[1722366704923,2.10701602,65800.0,65799.0,0.009394]
[1722366705120,2.20683346,65800.0,65799.0,0.009394]
[1722366705339,1.93193346,65800.0,65799.0,0.009394]
[1722366705752,1.31446104,65800.0,65799.0,0.009394]
[1722366705956,2.58486704,65800.0,65799.0,0.009394]
[1722366706479,2.59468448,65800.0,65799.0,0.009394]
[1722366707169,2.28091604,65800.0,65799.0,0.009394]
[1722366707375,1.67301404,65800.0,65799.0,0.009394]
[1722366707609,2.59886704,65800.0,65799.0,0.009394]
[1722366707999,2.58486704,65800.0,65799.0,0.009394]
[1722366708237,1.97696504,65800.0,65799.0,0.009394]
[1722366708649,1.67301404,65800.0,65799.0,0.009394]
[1722366708855,1.42103904,65800.0,65799.0,0.009394]
[1722366709229,1.87696504,65800.0,65799.0,0.009394]
[1722366709455,1.283406,65800.0,65799.0,0.009394]
[1722366709575,1.283406,65800.0,65799.0,0.18455356]
[1722366709778,1.283406,65800.0,65799.0,0.03257656]
[1722366709981,1.283406,65800.0,65799.0,0.48850856]
[1722366710200,1.283406,65800.0,65799.0,0.03257656]
[1722366710405,1.270406,65800.0,65799.0,0.18455356]
[1722366710607,1.270406,65809.0,65808.0,0.45605356]
[1722366710818,1.270406,65809.0,65808.0,0.15213956]
[1722366711021,1.270406,65809.0,65808.0,0.17513956]
[1722366711399,1.270406,65809.0,65808.0,0.47905356]
[1722366711573,1.270406,65809.0,65808.0,0.17513956]
[1722366712175,1.270406,65809.0,65808.0,0.47905356]
[1722366712994,1.270406,65817.0,65816.0,0.00018256]
[1722366713333,1.270406,65817.0,65816.0,0.15212056]
[1722366713539,1.270406,65817.0,65816.0,0.02318256]
[1722366714021,1.422342,65817.0,65816.0,0.00018256]
[1722366714219,1.270406,65817.0,65816.0,0.02318256]
[1722366714559,1.270406,65817.0,65816.0,0.47899756]
[1722366714759,1.270406,65817.0,65816.0,0.61749756]
[1722366715024,1.230406,65817.0,65816.0,0.92137456]
[1722366715244,1.230406,65817.0,65816.0,0.61749756]
[1722366715554,0.07534716,65831.0,65816.0,0.61749756]
[1722366715555,1.2746,65844.0,65837.0,0.077]
[1722366715756,1.2746,65844.0,65838.0,0.00018256]
[1722366715757,0.151885,65839.0,65838.0,0.00018256]
[1722366715906,0.151901,65832.0,65831.0,0.00018256]
[1722366716112,0.151901,65832.0,65820.0,0.1527218]
[1722366716113,0.151913,65827.0,65826.0,0.00018256]
[1722366716311,0.151915,65826.0,65825.0,0.02318256]
[1722366716528,0.151915,65826.0,65820.0,0.0629]
[1722366716529,0.45790282,65826.0,65822.0,0.00018256]
[1722366716809,0.759622,65822.0,65821.0,0.00018256]
[1722366717009,0.455773,65822.0,65821.0,0.00018256]
[1722366717134,0.07534716,65823.0,65816.0,0.023]
[1722366717135,0.303859,65820.0,65819.0,0.00018256]
[1722366717337,0.455788,65820.0,65819.0,0.00018256]
[1722366718442,0.15063304,65820.0,65815.0,0.0015542]
[1722366718637,0.151941,65815.0,65814.0,0.0015542]
[1722366718842,0.45797982,65815.0,65814.0,0.0015542]
[1722366719129,0.15409782,65815.0,65814.0,0.0015542]
[1722366719419,0.00215682,65815.0,65814.0,0.0015542]
[1722366719799,0.00215682,65818.0,65814.0,0.0015542]
[1722366720018,0.15063304,65819.0,65816.0,0.0015542]
[1722366720194,1.597441,65826.0,65819.0,0.00018256]
[1722366720195,1.230406,65826.0,65819.0,0.00018256]
[1722366720388,0.07534716,65824.0,65819.0,0.00018256]
[1722366720590,0.455794,65819.0,65818.0,0.00018256]
[1722366721035,0.455802,65818.0,65817.0,0.00018256]
[1722366721564,1.686208,65818.0,65817.0,0.00018256]
[1722366721782,1.38234,65818.0,65817.0,0.00018256]
[1722366721987,1.230406,65818.0,65817.0,0.00018256]
[1722366722160,1.230406,65818.0,65817.0,0.15211856]
[1722366722321,1.230406,65818.0,65817.0,0.45599056]
[1722366722516,1.230406,65818.0,65817.0,0.55549056]
[1722366722722,1.230406,65818.0,65817.0,1.03461334]
[1722366722951,1.230406,65818.0,65817.0,0.92216256]
[1722366723155,1.230406,65818.0,65817.0,0.28872035]
[1722366723362,1.686208,65818.0,65817.0,0.09073101]
[1722366723567,1.230406,65818.0,65817.0,0.02318256]
[1722366723789,1.230406,65818.0,65817.0,0.02473676]
[1722366723991,1.53297304,65818.0,65817.0,0.04658829]
[1722366724193,1.38103904,65818.0,65816.0,0.0015542]
[1722366724400,0.07750398,65817.0,65816.0,0.04679126]
[1722366724590,0.22943998,65817.0,65816.0,0.04523706]
[1722366724921,0.22943998,65817.0,65816.0,0.00018256]
[1722366725129,0.53331198,65817.0,65816.0,0.06931852]
[1722366725449,1.29168902,65817.0,65816.0,0.06758176]
[1722366725669,0.759692,65816.0,65815.0,0.0015542]
[1722366725990,0.759705,65815.0,65814.0,0.0015542]
[1722366726505,1.230406,65818.0,65816.0,0.00018256]
[1722366726715,1.230406,65818.0,65817.0,0.0015542]
[1722366726924,1.230406,65818.0,65817.0,0.06920417]
[1722366727118,1.38234,65818.0,65817.0,0.06920417]
[1722366727320,0.151936,65817.0,65816.0,0.04686375]
[1722366727518,1.686214,65817.0,65816.0,0.06942738]
[1722366727768,1.230406,65817.0,65816.0,0.06787318]
[1722366727949,1.230406,65817.0,65816.0,0.11343672]
[1722366728162,1.230406,65817.0,65816.0,0.26692892]
[1722366728363,1.230406,65817.0,65816.0,0.17512056]
[1722366728564,1.230406,65817.0,65816.0,0.28799534]
[1722366728764,1.231406,65817.0,65816.0,0.17512056]
[1722366729268,1.687214,65817.0,65816.0,0.11354857]
[1722366729485,1.687214,65817.0,65816.0,0.09096051]
[1722366729609,1.687214,65817.0,65816.0,0.02318256]
[1722366730028,1.687214,65817.0,65816.0,0.06992155]
[1722366730342,1.687214,65817.0,65816.0,0.02473676]
[1722366730578,1.231406,65817.0,65816.0,0.02473676]
[1722366730958,1.231406,65817.0,65816.0,0.86482876]
[1722366731159,1.231406,65817.0,65816.0,0.86327456]
[1722366731404,1.231406,65817.0,65816.0,1.35620117]
[1722366731604,1.231406,65817.0,65816.0,1.35620072]
[1722366732533,1.231406,65817.0,65816.0,1.55811501]
[1722366732689,1.231406,65817.0,65816.0,1.86043781]
[1722366732877,1.231406,65817.0,65816.0,1.82271076]
[1722366733467,0.001,65817.0,65816.0,1.82271076]
[1722366733669,0.001,65817.0,65816.0,1.82426496]
[1722366733890,0.00084,65818.0,65817.0,0.012]
[1722366734170,0.00084,65818.0,65817.0,1.7463184]
[1722366734343,0.87174716,65845.0,65817.0,1.7463184]
[1722366734344,0.02381619,65864.0,65863.0,0.00018256]
[1722366734590,0.312985,65883.0,65872.0,0.00018256]
[1722366734591,0.009416,65875.0,65872.0,0.00018256]
[1722366734812,0.009416,65875.0,65874.0,0.00018256]
[1722366735047,0.161218,65875.0,65874.0,0.00018256]
[1722366735269,0.009416,65875.0,65874.0,0.00018256]
[1722366735467,0.009416,65875.0,65874.0,0.15198656]
[1722366735580,0.009416,65875.0,65874.0,0.02318256]
[1722366737034,0.009416,65875.0,65874.0,0.00018256]
[1722366737287,0.009416,65875.0,65874.0,0.02318256]
[1722366737425,0.015416,65875.0,65874.0,0.02418256]
[1722366737870,0.015416,65875.0,65874.0,0.00118256]
[1722366738224,0.2353962,65875.0,65868.0,0.15199956]
[1722366738432,0.15063304,65874.0,65869.0,0.00018256]
[1722366738836,0.15063304,65874.0,65863.0,0.023]
[1722366738837,0.151812,65871.0,65868.0,0.00018256]
[1722366739037,0.15063304,65874.0,65870.0,0.15199656]
[1722366739239,0.15063304,65874.0,65870.0,0.00018256]
[1722366739389,1.230406,65873.0,65870.0,0.00018256]
[1722366739952,1.382213,65873.0,65871.0,0.00018256]
[1722366740212,0.151809,65872.0,65871.0,0.00018256]
[1722366740414,0.455428,65872.0,65871.0,0.00018256]
[1722366740956,0.15063304,65872.0,65867.0,0.00018256]
[1722366741163,0.15063304,65872.0,65858.0,0.303682]
[1722366741164,0.151822,65867.0,65864.0,0.00018256]
[1722366741370,0.455464,65867.0,65866.0,0.00018256]
[1722366741778,0.455464,65867.0,65862.0,0.023]
[1722366741779,0.45549,65863.0,65862.0,0.00018256]
[1722366741987,0.75915,65863.0,65862.0,0.00018256]
[1722366742161,0.30366,65863.0,65862.0,0.00018256]
[1722366742388,0.151845,65857.0,65856.0,0.00018256]
[1722366742588,0.151846,65856.0,65855.0,0.00018256]
[1722366742786,0.15186,65850.0,65849.0,0.00018256]
[1722366743037,1.382266,65850.0,65849.0,0.00018256]
[1722366743328,1.230406,65850.0,65849.0,0.15204456]
[1722366743535,1.230406,65850.0,65849.0,0.75949456]
[1722366744063,1.230406,65850.0,65849.0,0.78249456]
[1722366744267,1.230406,65850.0,65849.0,0.84379456]
[1722366745116,1.230406,65850.0,65849.0,0.90463256]
[1722366745516,1.230406,65850.0,65849.0,0.08402056]
[1722366745517,1.685986,65850.0,65849.0,0.08402056]
[1722366745904,1.230406,65850.0,65849.0,0.08402056]
[1722366746356,1.230406,65850.0,65849.0,0.088838]
[1722366746357,1.685986,65850.0,65849.0,0.088838]
[1722366746564,1.685986,65850.0,65849.0,0.028]
[1722366746565,1.989706,65850.0,65849.0,0.028]
[1722366746881,2.293426,65850.0,65849.0,0.005]
[1722366747088,2.74777904,65850.0,65849.0,0.005]
[1722366747503,2.44405904,65850.0,65849.0,0.005]
[1722366747700,1.685986,65850.0,65849.0,0.005]
[1722366747950,1.989706,65850.0,65849.0,0.005]
[1722366748120,0.455593,65848.0,65847.0,0.00018256]
[1722366748355,0.151878,65842.0,65841.0,0.06103156]
[1722366748539,0.455635,65842.0,65841.0,0.08403156]
[1722366748746,0.455635,65842.0,65841.0,0.083849]
[1722366748951,0.759392,65842.0,65841.0,0.083849]
[1722366749238,0.455656,65839.0,65838.0,0.00018256]
[1722366749659,0.455683,65835.0,65834.0,0.00018256]
[1722366749861,1.686089,65835.0,65834.0,0.00018256]
[1722366750467,1.230406,65835.0,65834.0,0.00018256]
[1722366750603,1.3823,65835.0,65834.0,0.06104056]
[1722366751166,1.686089,65835.0,65834.0,0.06104056]
[1722366751290,2.293667,65835.0,65834.0,0.060858]
[1722366751494,2.293667,65835.0,65826.0,0.00018256]
[1722366751495,0.151913,65827.0,65826.0,0.00018256]
[1722366751710,0.759565,65827.0,65826.0,0.00018256]
[1722366751920,1.063391,65827.0,65826.0,0.00018256]
[1722366752123,1.063391,65827.0,65826.0,0.00626956]
[1722366752325,1.21402404,65827.0,65826.0,0.006087]
[1722366752752,0.759647,65820.0,65819.0,0.00018256]
[1722366752925,1.990053,65820.0,65819.0,0.00018256]
[1722366753337,1.686194,65820.0,65819.0,0.00626956]
[1722366753923,1.990053,65820.0,65819.0,0.00626956]
[1722366754116,2.293912,65820.0,65819.0,0.00626956]
[1722366755316,2.293912,65820.0,65819.0,0.006087]
[1722366755723,2.293912,65820.0,65819.0,0.00626956]
[1722366755938,1.686194,65820.0,65819.0,0.00626956]
[1722366756320,1.990053,65820.0,65819.0,0.00626956]
[1722366756701,2.293912,65820.0,65819.0,0.00626956]
[1722366757023,2.302912,65820.0,65819.0,0.00726956]
[1722366757231,1.999053,65820.0,65819.0,0.00726956]
[1722366757765,1.999053,65820.0,65819.0,0.007087]
[1722366758165,2.45354504,65820.0,65819.0,0.001]
[1722366759195,2.54016248,65820.0,65819.0,0.001]
[1722366759393,2.60266248,65820.0,65819.0,0.001]
[1722366759594,2.90652148,65820.0,65819.0,0.001]
[1722366760431,2.60266248,65820.0,65819.0,0.001913]
[1722366761824,1.999053,65820.0,65819.0,0.001913]
[1722366762825,2.302912,65820.0,65819.0,0.001913]
[1722366763043,1.999053,65820.0,65819.0,0.001913]
[1722366763433,2.14968604,65820.0,65819.0,0.001913]
[1722366763635,2.45354504,65820.0,65819.0,0.001913]
[1722366764831,2.59954504,65820.0,65819.0,0.001913]
[1722366765158,2.90340404,65820.0,65819.0,0.001913]
[1722366766339,2.91322148,65820.0,65819.0,0.001913]
[1722366766701,2.90340404,65820.0,65819.0,0.001913]
[1722366766907,2.91322148,65820.0,65819.0,0.001913]
[1722366767512,3.23708048,65820.0,65819.0,0.001913]
[1722366767718,2.91322148,65820.0,65819.0,0.001913]
[1722366767916,3.01322148,65820.0,65819.0,0.001913]
[1722366768136,3.03322148,65820.0,65819.0,0.001913]
[1722366768541,3.49728048,65820.0,65819.0,0.001913]
[1722366769982,3.17342148,65820.0,65819.0,0.001913]
[1722366770187,3.19342148,65820.0,65819.0,0.001913]
[1722366770662,3.49728048,65820.0,65819.0,0.001913]
[1722366772327,3.47728048,65820.0,65819.0,0.001913]
[1722366772528,3.17342148,65820.0,65819.0,0.001913]
[1722366772752,3.18939049,65820.0,65819.0,0.001913]
[1722366773289,3.51324949,65820.0,65819.0,0.001913]
[1722366773499,3.49728048,65820.0,65819.0,0.001913]
[1722366773631,3.51331965,65820.0,65819.0,0.001913]
[1722366773835,3.49331965,65820.0,65819.0,0.001913]
[1722366774439,3.18946065,65820.0,65819.0,0.001913]
[1722366774638,3.49331965,65820.0,65819.0,0.001913]
[1722366774859,3.18946065,65820.0,65819.0,0.001913]
[1722366775810,3.02926065,65820.0,65819.0,0.001913]
[1722366776148,3.01952692,65820.0,65819.0,0.001913]
[1722366776553,3.35320336,65820.0,65819.0,0.001913]
[1722366776939,3.75909567,65820.0,65819.0,0.001913]
[1722366777560,3.75009567,65820.0,65819.0,0.000913]
[1722366777956,3.76309567,65820.0,65819.0,0.001913]
[1722366778237,0.151966,65804.0,65803.0,0.00609]
[1722366778431,2.13803204,65804.0,65803.0,0.00609]
[1722366778634,0.151975,65800.0,65789.0,0.00018256]